[Event "January 9 Early 2024"]
[Site "https://www.chess.com"]
[Date "2024.01.11"]
[Round "10"]
[White "Rajdeep Sarkar"]
[Black "Tharushi, T H D Niklesha"]
[Result "0-1"]
[Board "178"]
[TimeControl "180+1"]
[WhiteFideId "25007963"]
[BlackFideId "9918264"]
[WhiteElo "2380"]
[BlackElo "2278"]
[WhiteTeam "IND"]
[BlackTeam "SRI"]
[WhiteClock "0:00:04"]
[BlackClock "0:00:11"]

1. Nf3 {[%clk 0:03:00]}  Nf6 {[%clk 0:02:57]} 2. c4 {[%clk 0:03:01]}  e6 {[%clk 0:02:53]} 3. d4 {[%clk 0:03:02]}  d5 {[%clk 0:02:51]} 4. Nc3 {[%clk 0:03:01]}  Bb4 {[%clk 0:02:49]} 5. Bg5 {[%clk 0:03:01]}  h6 {[%clk 0:02:50]} 6. Bh4 {[%clk 0:02:59]}  g5 {[%clk 0:02:50]} 7. Bg3 {[%clk 0:02:59]}  Ne4 {[%clk 0:02:49]} 8. Rc1 {[%clk 0:02:50]}  h5 {[%clk 0:02:46]} 9. h4 {[%clk 0:02:40]}  Nxg3 {[%clk 0:02:39]} 10. fxg3 {[%clk 0:02:39]}  Bd6 {[%clk 0:02:39]} 11. Kf2 {[%clk 0:02:28]}  g4 {[%clk 0:02:39]} 12. c5 {[%clk 0:02:23]}  Be7 {[%clk 0:01:47]} 13. Nd2 {[%clk 0:01:56]}  e5 {[%clk 0:01:46]} 14. e3 {[%clk 0:01:54]}  e4 {[%clk 0:01:44]} 15. Ne2 {[%clk 0:01:49]}  c6 {[%clk 0:01:43]} 16. Nf4 {[%clk 0:01:49]}  Nd7 {[%clk 0:01:33]} 17. b4 {[%clk 0:01:48]}  a6 {[%clk 0:01:33]} 18. a4 {[%clk 0:01:47]}  Nf8 {[%clk 0:01:29]} 19. Be2 {[%clk 0:01:46]}  Ne6 {[%clk 0:01:24]} 20. Nf1 {[%clk 0:01:07]}  Ng7 {[%clk 0:01:20]} 21. Nd2 {[%clk 0:01:02]}  Nf5 {[%clk 0:01:20]} 22. Re1 {[%clk 0:00:54]}  Bxh4 {[%clk 0:01:05]} 23. Nf1 {[%clk 0:00:45]}  Bg5 {[%clk 0:01:03]} 24. b5 {[%clk 0:00:39]}  axb5 {[%clk 0:00:57]} 25. axb5 {[%clk 0:00:40]}  Ra3 {[%clk 0:00:53]} 26. Ra1 {[%clk 0:00:36]}  Rxa1 {[%clk 0:00:30]} 27. Qxa1 {[%clk 0:00:37]}  h4 {[%clk 0:00:25]} 28. Rb1 {[%clk 0:00:20]}  hxg3+ {[%clk 0:00:25]} 29. Ke1 {[%clk 0:00:20]}  Rh1 {[%clk 0:00:20]} 30. Kd2 {[%clk 0:00:19]}  Bxf4 {[%clk 0:00:18]} 31. exf4 {[%clk 0:00:19]}  Qc7 {[%clk 0:00:18]} 32. Kc2 {[%clk 0:00:14]}  Qxf4 {[%clk 0:00:18]} 33. Qc3 {[%clk 0:00:14]}  Rxf1 {[%clk 0:00:15]} 34. Bxf1 {[%clk 0:00:13]}  Ne3+ {[%clk 0:00:16]} 35. Kb3 {[%clk 0:00:13]}  Nxf1 {[%clk 0:00:16]} 36. bxc6 {[%clk 0:00:13]}  bxc6 {[%clk 0:00:15]} 37. Re1 {[%clk 0:00:10]}  Nd2+ {[%clk 0:00:14]} 38. Kb4 {[%clk 0:00:11]}  Nc4 {[%clk 0:00:14]} 39. Ra1 {[%clk 0:00:07]}  Qd2 {[%clk 0:00:13]} 40. Qxd2 {[%clk 0:00:07]}  Nxd2 {[%clk 0:00:13]} 41. Kc3 {[%clk 0:00:06]}  Nc4 {[%clk 0:00:13]} 42. Ra7 {[%clk 0:00:06]}  Bd7 {[%clk 0:00:11]} 43. Kc2 {[%clk 0:00:03]}  Ne3+ {[%clk 0:00:10]} 44. Kd2 {[%clk 0:00:03]}  Nxg2 {[%clk 0:00:11]} 45. Ke2 {[%clk 0:00:04]}  Nf4+ {[%clk 0:00:11]} 46. Ke3 {[%clk 0:00:04]}  Nd3 {[%clk 0:00:11]} 47. Ke2 {[%clk 0:00:04]}  f5 {[%clk 0:00:12]} 48. Ra2 {[%clk 0:00:02]}  f4 {[%clk 0:00:12]} 49. Ra1 {[%clk 0:00:03]}  f3+ {[%clk 0:00:13]} 50. Ke3 {[%clk 0:00:04]}  g2 {[%clk 0:00:12]} 51. Rg1 {[%clk 0:00:04]}  g3 {[%clk 0:00:13]} 52. Rc1 {[%clk 0:00:04]}  Nxc1 {[%clk 0:00:11]} 0-1

[Event "January 9 Early 2024"]
[Site "https://www.chess.com"]
[Date "2024.01.11"]
[Round "10"]
[White "Ladan, Nicholas"]
[Black "Luukkonen, Tommi"]
[Result "0-1"]
[Board "179"]
[TimeControl "180+1"]
[WhiteFideId "30918855"]
[BlackFideId "501808"]
[WhiteElo "2468"]
[BlackElo "2348"]
[WhiteTeam "USA"]
[BlackTeam "FIN"]
[WhiteClock "0:00:04"]
[BlackClock "0:00:09"]

1. Nf3 {[%clk 0:03:00]}  d5 {[%clk 0:02:58]} 2. g3 {[%clk 0:03:00]}  Nd7 {[%clk 0:02:58]} 3. d4 {[%clk 0:03:00]}  Nb6 {[%clk 0:02:58]} 4. Bg2 {[%clk 0:03:00]}  Bf5 {[%clk 0:02:58]} 5. O-O {[%clk 0:02:58]}  e6 {[%clk 0:02:58]} 6. b3 {[%clk 0:02:58]}  c6 {[%clk 0:02:58]} 7. Bb2 {[%clk 0:02:58]}  Be7 {[%clk 0:02:57]} 8. Nbd2 {[%clk 0:02:58]}  h6 {[%clk 0:02:57]} 9. c4 {[%clk 0:02:58]}  Nf6 {[%clk 0:02:57]} 10. Ne5 {[%clk 0:02:56]}  O-O {[%clk 0:02:55]} 11. Re1 {[%clk 0:02:56]}  a5 {[%clk 0:02:52]} 12. e4 {[%clk 0:02:56]}  dxe4 {[%clk 0:02:51]} 13. Nxe4 {[%clk 0:02:56]}  Nxe4 {[%clk 0:02:52]} 14. Bxe4 {[%clk 0:02:57]}  Bxe4 {[%clk 0:02:51]} 15. Rxe4 {[%clk 0:02:58]}  a4 {[%clk 0:02:49]} 16. Rb1 {[%clk 0:02:48]}  axb3 {[%clk 0:02:48]} 17. axb3 {[%clk 0:02:49]}  Ra2 {[%clk 0:02:47]} 18. Qh5 {[%clk 0:02:48]}  Nd7 {[%clk 0:02:30]} 19. Nxd7 {[%clk 0:02:09]}  Qxd7 {[%clk 0:02:31]} 20. Rg4 {[%clk 0:02:10]}  Bf6 {[%clk 0:02:14]} 21. Qxh6 {[%clk 0:02:05]}  Qe7 {[%clk 0:02:08]} 22. h4 {[%clk 0:01:40]}  Rd8 {[%clk 0:02:06]} 23. Qf4 {[%clk 0:01:38]}  c5 {[%clk 0:02:04]} 24. h5 {[%clk 0:01:27]}  Rxb2 {[%clk 0:01:26]} 25. Rxb2 {[%clk 0:01:25]}  Rxd4 {[%clk 0:01:26]} 26. Qb8+ {[%clk 0:01:21]}  Rd8 {[%clk 0:01:26]} 27. Qxd8+ {[%clk 0:01:11]}  Qxd8 {[%clk 0:01:25]} 28. Rb1 {[%clk 0:00:54]}  Qd3 {[%clk 0:01:25]} 29. Re1 {[%clk 0:00:48]}  Kh7 {[%clk 0:01:18]} 30. Kg2 {[%clk 0:00:45]}  Qxb3 {[%clk 0:01:10]} 31. h6 {[%clk 0:00:42]}  gxh6 {[%clk 0:01:04]} 32. Rf4 {[%clk 0:00:41]}  Kg7 {[%clk 0:01:02]} 33. Re3 {[%clk 0:00:36]}  Qb2 {[%clk 0:00:51]} 34. Ref3 {[%clk 0:00:36]}  b6 {[%clk 0:00:46]} 35. Kg1 {[%clk 0:00:28]}  Qb1+ {[%clk 0:00:42]} 36. Kg2 {[%clk 0:00:27]}  Qg6 {[%clk 0:00:42]} 37. Kh3 {[%clk 0:00:24]}  Bd4 {[%clk 0:00:37]} 38. g4 {[%clk 0:00:20]}  f6 {[%clk 0:00:32]} 39. Kh4 {[%clk 0:00:17]}  Be5 {[%clk 0:00:32]} 40. Rf5 {[%clk 0:00:13]}  exf5 {[%clk 0:00:31]} 41. Rxf5 {[%clk 0:00:14]}  h5 {[%clk 0:00:23]} 42. Rxh5 {[%clk 0:00:11]}  Qe4 {[%clk 0:00:22]} 43. f3 {[%clk 0:00:08]}  Qxf3 {[%clk 0:00:17]} 44. g5 {[%clk 0:00:04]}  Qh1+ {[%clk 0:00:14]} 45. Kg4 {[%clk 0:00:04]}  f5+ {[%clk 0:00:13]} 46. Kxf5 {[%clk 0:00:01]}  Qxh5 {[%clk 0:00:13]} 47. Ke6 {[%clk 0:00:01]}  Qxg5 {[%clk 0:00:13]} 48. Kd5 {[%clk 0:00:02]}  Qf4 {[%clk 0:00:12]} 49. Kc6 {[%clk 0:00:02]}  Qxc4 {[%clk 0:00:12]} 50. Kd7 {[%clk 0:00:01]}  b5 {[%clk 0:00:12]} 51. Ke7 {[%clk 0:00:01]}  b4 {[%clk 0:00:12]} 52. Ke8 {[%clk 0:00:01]}  b3 {[%clk 0:00:12]} 53. Ke7 {[%clk 0:00:02]}  b2 {[%clk 0:00:12]} 54. Kd7 {[%clk 0:00:03]}  b1=Q {[%clk 0:00:12]} 55. Kc8 {[%clk 0:00:04]}  Qe6+ {[%clk 0:00:09]} 56. Kd8 {[%clk 0:00:04]}  Qb8# {[%clk 0:00:09]} 0-1

[Event "January 9 Early 2024"]
[Site "https://www.chess.com"]
[Date "2024.01.11"]
[Round "10"]
[White "Lu, Shanglei"]
[Black "Terry, Renato"]
[Result "0-1"]
[Board "181"]
[TimeControl "180+1"]
[WhiteFideId "8603332"]
[BlackFideId "3803457"]
[WhiteElo "3012"]
[BlackElo "3010"]
[WhiteTeam "CHN"]
[BlackTeam "PER"]
[WhiteClock "0:00:06"]
[BlackClock "0:00:07"]

1. e4 {[%clk 0:03:00]}  e6 {[%clk 0:03:00]} 2. d4 {[%clk 0:03:00]}  d5 {[%clk 0:03:01]} 3. e5 {[%clk 0:03:01]}  c5 {[%clk 0:03:01]} 4. c3 {[%clk 0:03:02]}  Qb6 {[%clk 0:03:01]} 5. Nf3 {[%clk 0:03:02]}  Bd7 {[%clk 0:03:02]} 6. Be2 {[%clk 0:03:02]}  cxd4 {[%clk 0:03:02]} 7. cxd4 {[%clk 0:02:58]}  Bb5 {[%clk 0:03:02]} 8. Nc3 {[%clk 0:02:57]}  Bxe2 {[%clk 0:03:02]} 9. Nxe2 {[%clk 0:02:58]}  Bb4+ {[%clk 0:03:02]} 10. Bd2 {[%clk 0:02:57]}  Bxd2+ {[%clk 0:03:02]} 11. Qxd2 {[%clk 0:02:58]}  Nc6 {[%clk 0:03:02]} 12. O-O {[%clk 0:02:58]}  Nge7 {[%clk 0:03:02]} 13. Ng3 {[%clk 0:02:52]}  O-O {[%clk 0:03:02]} 14. a3 {[%clk 0:02:45]}  Na5 {[%clk 0:03:01]} 15. Qg5 {[%clk 0:02:25]}  Ng6 {[%clk 0:02:58]} 16. b4 {[%clk 0:02:25]}  Nc6 {[%clk 0:02:49]} 17. Rfd1 {[%clk 0:02:20]}  a5 {[%clk 0:02:47]} 18. bxa5 {[%clk 0:02:12]}  Rxa5 {[%clk 0:02:48]} 19. h4 {[%clk 0:02:12]}  h6 {[%clk 0:02:48]} 20. Qg4 {[%clk 0:02:10]}  Ra4 {[%clk 0:02:47]} 21. Nh5 {[%clk 0:02:05]}  Nce7 {[%clk 0:02:21]} 22. Nxg7 {[%clk 0:01:26]}  Kxg7 {[%clk 0:02:21]} 23. h5 {[%clk 0:01:26]}  Nf5 {[%clk 0:02:21]} 24. Rab1 {[%clk 0:01:24]}  Qc7 {[%clk 0:02:15]} 25. Rd3 {[%clk 0:01:12]}  Rc4 {[%clk 0:02:04]} 26. Rdb3 {[%clk 0:01:01]}  Rc1+ {[%clk 0:02:04]} 27. Kh2 {[%clk 0:01:01]}  Rxb1 {[%clk 0:02:04]} 28. Rxb1 {[%clk 0:01:02]}  b6 {[%clk 0:01:41]} 29. hxg6 {[%clk 0:00:37]}  fxg6 {[%clk 0:01:42]} 30. Kg1 {[%clk 0:00:31]}  g5 {[%clk 0:01:28]} 31. g3 {[%clk 0:00:29]}  Rf7 {[%clk 0:01:05]} 32. Qh5 {[%clk 0:00:15]}  Ne7 {[%clk 0:00:53]} 33. Nh2 {[%clk 0:00:12]}  Qc2 {[%clk 0:00:53]} 34. Rf1 {[%clk 0:00:12]}  Qg6 {[%clk 0:00:42]} 35. Qxg6+ {[%clk 0:00:12]}  Kxg6 {[%clk 0:00:43]} 36. Rb1 {[%clk 0:00:13]}  Nf5 {[%clk 0:00:41]} 37. Nf3 {[%clk 0:00:08]}  g4 {[%clk 0:00:32]} 38. Nh4+ {[%clk 0:00:08]}  Nxh4 {[%clk 0:00:32]} 39. gxh4 {[%clk 0:00:09]}  Rb7 {[%clk 0:00:31]} 40. Kg2 {[%clk 0:00:10]}  Kf5 {[%clk 0:00:31]} 41. Kg3 {[%clk 0:00:10]}  h5 {[%clk 0:00:32]} 42. f3 {[%clk 0:00:09]}  gxf3 {[%clk 0:00:30]} 43. Kxf3 {[%clk 0:00:09]}  Ra7 {[%clk 0:00:30]} 44. Rb3 {[%clk 0:00:09]}  Ra4 {[%clk 0:00:29]} 45. Ke3 {[%clk 0:00:10]}  Kg4 {[%clk 0:00:27]} 46. Kd3 {[%clk 0:00:09]}  Ra6 {[%clk 0:00:24]} 47. Ke3 {[%clk 0:00:08]}  Ra8 {[%clk 0:00:18]} 48. Kd3 {[%clk 0:00:07]}  Ra7 {[%clk 0:00:14]} 49. Ke3 {[%clk 0:00:06]}  Ra6 {[%clk 0:00:14]} 50. Kd3 {[%clk 0:00:07]}  Kxh4 {[%clk 0:00:14]} 51. a4 {[%clk 0:00:05]}  Kg4 {[%clk 0:00:14]} 52. Rb4 {[%clk 0:00:06]}  h4 {[%clk 0:00:13]} 53. Ke3 {[%clk 0:00:06]}  h3 {[%clk 0:00:11]} 54. Rb1 {[%clk 0:00:06]}  Rxa4 {[%clk 0:00:09]} 55. Rg1+ {[%clk 0:00:05]}  Kh4 {[%clk 0:00:08]} 56. Rg6 {[%clk 0:00:06]}  h2 {[%clk 0:00:07]} 57. Rh6+ {[%clk 0:00:05]}  Kg3 {[%clk 0:00:07]} 58. Rg6+ {[%clk 0:00:06]}  Kh3 {[%clk 0:00:08]} 59. Rh6+ {[%clk 0:00:06]}  Kg2 {[%clk 0:00:08]} 60. Rg6+ {[%clk 0:00:07]}  Kf1 {[%clk 0:00:08]} 61. Rh6 {[%clk 0:00:07]}  Ra2 {[%clk 0:00:07]} 62. Kf4 {[%clk 0:00:06]}  Kg1 {[%clk 0:00:07]} 0-1

[Event "January 9 Early 2024"]
[Site "https://www.chess.com"]
[Date "2024.01.11"]
[Round "10"]
[White "Nowak, Lukasz"]
[Black "Yonal, Timur"]
[Result "1/2-1/2"]
[Board "183"]
[TimeControl "180+1"]
[WhiteFideId "1166760"]
[BlackFideId "44115725"]
[WhiteElo "2027"]
[BlackElo "2245"]
[WhiteTeam "POL"]
[BlackTeam "TUR"]
[WhiteClock "0:00:01"]
[BlackClock "0:00:16"]

1. c4 {[%clk 0:03:00]}  e5 {[%clk 0:02:54]} 2. g3 {[%clk 0:03:00]}  Nf6 {[%clk 0:02:48]} 3. Bg2 {[%clk 0:02:59]}  d5 {[%clk 0:02:43]} 4. cxd5 {[%clk 0:03:00]}  Nxd5 {[%clk 0:02:43]} 5. Nc3 {[%clk 0:02:58]}  Nb6 {[%clk 0:02:34]} 6. Nf3 {[%clk 0:02:57]}  Nc6 {[%clk 0:02:26]} 7. O-O {[%clk 0:02:56]}  Be7 {[%clk 0:02:21]} 8. a3 {[%clk 0:02:56]}  O-O {[%clk 0:02:20]} 9. b4 {[%clk 0:02:55]}  Be6 {[%clk 0:02:15]} 10. b5 {[%clk 0:02:43]}  Nd4 {[%clk 0:02:10]} 11. Rb1 {[%clk 0:02:37]}  f6 {[%clk 0:01:58]} 12. e3 {[%clk 0:02:33]}  Nxf3+ {[%clk 0:01:51]} 13. Bxf3 {[%clk 0:02:34]}  Rb8 {[%clk 0:01:49]} 14. d4 {[%clk 0:02:32]}  exd4 {[%clk 0:01:47]} 15. exd4 {[%clk 0:02:33]}  Nd5 {[%clk 0:01:48]} 16. Nxd5 {[%clk 0:02:18]}  Bxd5 {[%clk 0:01:48]} 17. Re1 {[%clk 0:02:16]}  Re8 {[%clk 0:01:43]} 18. a4 {[%clk 0:02:10]}  Qd7 {[%clk 0:01:27]} 19. Bf4 {[%clk 0:01:55]}  Bf8 {[%clk 0:01:23]} 20. Bxd5+ {[%clk 0:01:34]}  Qxd5 {[%clk 0:01:18]} 21. Rxe8 {[%clk 0:01:35]}  Rxe8 {[%clk 0:01:19]} 22. Bxc7 {[%clk 0:01:34]}  Rc8 {[%clk 0:00:48]} 23. Bf4 {[%clk 0:01:33]}  Rd8 {[%clk 0:00:48]} 24. Be3 {[%clk 0:01:31]}  Bc5 {[%clk 0:00:47]} 25. Qb3 {[%clk 0:01:26]}  Qxb3 {[%clk 0:00:45]} 26. Rxb3 {[%clk 0:01:27]}  Bxd4 {[%clk 0:00:46]} 27. Rd3 {[%clk 0:01:24]}  Bb6 {[%clk 0:00:45]} 28. Rxd8+ {[%clk 0:01:23]}  Bxd8 {[%clk 0:00:46]} 29. Bxa7 {[%clk 0:01:22]}  Ba5 {[%clk 0:00:29]} 30. Kf1 {[%clk 0:01:16]}  Kf7 {[%clk 0:00:28]} 31. Ke2 {[%clk 0:01:15]}  Ke6 {[%clk 0:00:23]} 32. Kd3 {[%clk 0:01:16]}  Kd5 {[%clk 0:00:19]} 33. Bd4 {[%clk 0:01:11]}  Bc7 {[%clk 0:00:14]} 34. b6 {[%clk 0:01:06]}  Bd6 {[%clk 0:00:12]} 35. a5 {[%clk 0:01:05]}  Bb8 {[%clk 0:00:12]} 36. f4 {[%clk 0:01:00]}  Bd6 {[%clk 0:00:12]} 37. f5 {[%clk 0:00:55]}  Bb8 {[%clk 0:00:11]} 38. Bg1 {[%clk 0:00:50]}  Bd6 {[%clk 0:00:11]} 39. g4 {[%clk 0:00:50]}  Bb4 {[%clk 0:00:11]} 40. a6 {[%clk 0:00:47]}  bxa6 {[%clk 0:00:11]} 41. b7 {[%clk 0:00:47]}  Bd6 {[%clk 0:00:11]} 42. Ba7 {[%clk 0:00:47]}  a5 {[%clk 0:00:07]} 43. b8=Q {[%clk 0:00:47]}  Bxb8 {[%clk 0:00:08]} 44. Bxb8 {[%clk 0:00:46]}  a4 {[%clk 0:00:09]} 45. Ba7 {[%clk 0:00:43]}  Ke5 {[%clk 0:00:09]} 46. Be3 {[%clk 0:00:40]}  a3 {[%clk 0:00:08]} 47. h3 {[%clk 0:00:16]}  a2 {[%clk 0:00:08]} 48. Bd4+ {[%clk 0:00:15]}  Kf4 {[%clk 0:00:09]} 49. Bb2 {[%clk 0:00:09]}  Kg3 {[%clk 0:00:09]} 50. Ke4 {[%clk 0:00:09]}  Kxh3 {[%clk 0:00:10]} 51. Kf3 {[%clk 0:00:08]}  Kh4 {[%clk 0:00:10]} 52. Kf4 {[%clk 0:00:06]}  h5 {[%clk 0:00:10]} 53. gxh5 {[%clk 0:00:07]}  Kxh5 {[%clk 0:00:11]} 54. Bc3 {[%clk 0:00:04]}  g6 {[%clk 0:00:12]} 55. fxg6 {[%clk 0:00:04]}  Kxg6 {[%clk 0:00:12]} 56. Bb2 {[%clk 0:00:03]}  a1=Q {[%clk 0:00:13]} 57. Bxa1 {[%clk 0:00:03]}  Kh7 {[%clk 0:00:13]} 58. Bc3 {[%clk 0:00:04]}  f5 {[%clk 0:00:13]} 59. Bf6 {[%clk 0:00:04]}  Kg6 {[%clk 0:00:13]} 60. Be5 {[%clk 0:00:05]}  Kf7 {[%clk 0:00:13]} 61. Bd6 {[%clk 0:00:04]}  Ke6 {[%clk 0:00:14]} 62. Bb4 {[%clk 0:00:04]}  Kd7 {[%clk 0:00:15]} 63. Bc3 {[%clk 0:00:02]}  Kc6 {[%clk 0:00:16]} 64. Kxf5 {[%clk 0:00:01]} 1/2-1/2

[Event "January 9 Early 2024"]
[Site "https://www.chess.com"]
[Date "2024.01.11"]
[Round "10"]
[White "Mirzoev, Azer"]
[Black "Krzyzanowski, Marcin"]
[Result "1-0"]
[Board "185"]
[TimeControl "180+1"]
[WhiteFideId "13400304"]
[BlackFideId "1132199"]
[WhiteElo "2659"]
[BlackElo "2766"]
[WhiteTeam "AZE"]
[BlackTeam "POL"]
[WhiteClock "0:00:11"]
[BlackClock "0:00:01"]

1. d4 {[%clk 0:03:00]}  Nf6 {[%clk 0:02:58]} 2. Nf3 {[%clk 0:02:59]}  e6 {[%clk 0:02:58]} 3. c4 {[%clk 0:02:57]}  Bb4+ {[%clk 0:02:57]} 4. Bd2 {[%clk 0:02:56]}  Qe7 {[%clk 0:02:51]} 5. a3 {[%clk 0:02:54]}  Bxd2+ {[%clk 0:02:50]} 6. Qxd2 {[%clk 0:02:55]}  Nc6 {[%clk 0:02:40]} 7. Nc3 {[%clk 0:02:54]}  d5 {[%clk 0:02:38]} 8. e3 {[%clk 0:02:52]}  O-O {[%clk 0:02:36]} 9. Rc1 {[%clk 0:02:51]}  Rd8 {[%clk 0:02:23]} 10. Qc2 {[%clk 0:02:49]}  a6 {[%clk 0:02:20]} 11. Be2 {[%clk 0:02:47]}  h6 {[%clk 0:01:55]} 12. cxd5 {[%clk 0:02:40]}  exd5 {[%clk 0:01:54]} 13. O-O {[%clk 0:02:38]}  Bg4 {[%clk 0:01:47]} 14. h3 {[%clk 0:02:35]}  Be6 {[%clk 0:01:46]} 15. Rfe1 {[%clk 0:02:28]}  Re8 {[%clk 0:01:38]} 16. b4 {[%clk 0:02:27]}  Nb8 {[%clk 0:01:31]} 17. Na4 {[%clk 0:02:25]}  Bd7 {[%clk 0:01:18]} 18. Nc5 {[%clk 0:02:20]}  Bc8 {[%clk 0:01:18]} 19. a4 {[%clk 0:02:13]}  c6 {[%clk 0:01:14]} 20. b5 {[%clk 0:02:12]}  cxb5 {[%clk 0:01:07]} 21. axb5 {[%clk 0:02:13]}  a5 {[%clk 0:01:07]} 22. b6 {[%clk 0:02:07]}  Rd8 {[%clk 0:00:51]} 23. Ra1 {[%clk 0:01:52]}  Nc6 {[%clk 0:00:51]} 24. Reb1 {[%clk 0:01:41]}  Ne4 {[%clk 0:00:50]} 25. Nxe4 {[%clk 0:01:37]}  Bf5 {[%clk 0:00:43]} 26. Nfd2 {[%clk 0:01:02]}  dxe4 {[%clk 0:00:39]} 27. Rb5 {[%clk 0:00:59]}  Bg6 {[%clk 0:00:26]} 28. Qc5 {[%clk 0:00:48]}  Qe8 {[%clk 0:00:20]} 29. Nc4 {[%clk 0:00:42]}  a4 {[%clk 0:00:13]} 30. Rbb1 {[%clk 0:00:24]}  Ne7 {[%clk 0:00:12]} 31. Nd6 {[%clk 0:00:23]}  Qd7 {[%clk 0:00:12]} 32. Nb5 {[%clk 0:00:22]}  Nd5 {[%clk 0:00:12]} 33. Nc7 {[%clk 0:00:22]}  Rac8 {[%clk 0:00:10]} 34. Qxd5 {[%clk 0:00:21]}  Qxd5 {[%clk 0:00:10]} 35. Nxd5 {[%clk 0:00:21]}  Rxd5 {[%clk 0:00:10]} 36. Rxa4 {[%clk 0:00:21]}  Rc2 {[%clk 0:00:10]} 37. Bc4 {[%clk 0:00:20]}  Rd7 {[%clk 0:00:08]} 38. Bb3 {[%clk 0:00:19]}  Rd2 {[%clk 0:00:08]} 39. Ra7 {[%clk 0:00:19]}  Kh7 {[%clk 0:00:09]} 40. Ba4 {[%clk 0:00:19]}  Rd6 {[%clk 0:00:05]} 41. Rxb7 {[%clk 0:00:18]}  Rf6 {[%clk 0:00:05]} 42. Rf1 {[%clk 0:00:18]}  Rb2 {[%clk 0:00:05]} 43. Bd7 {[%clk 0:00:17]}  Rfxb6 {[%clk 0:00:04]} 44. Rxb6 {[%clk 0:00:17]}  Rxb6 {[%clk 0:00:04]} 45. g4 {[%clk 0:00:17]}  f6 {[%clk 0:00:04]} 46. Rc1 {[%clk 0:00:17]}  h5 {[%clk 0:00:04]} 47. Bf5 {[%clk 0:00:15]}  Bxf5 {[%clk 0:00:04]} 48. gxf5 {[%clk 0:00:15]}  Kh6 {[%clk 0:00:04]} 49. h4 {[%clk 0:00:15]}  Rb2 {[%clk 0:00:03]} 50. Kg2 {[%clk 0:00:15]}  Rb5 {[%clk 0:00:03]} 51. Rc5 {[%clk 0:00:14]}  Rb8 {[%clk 0:00:03]} 52. Kg3 {[%clk 0:00:14]}  Rb1 {[%clk 0:00:03]} 53. Kg2 {[%clk 0:00:13]}  Rb8 {[%clk 0:00:03]} 54. Ra5 {[%clk 0:00:13]}  Rb6 {[%clk 0:00:03]} 55. Kg3 {[%clk 0:00:13]}  Rb1 {[%clk 0:00:02]} 56. Rc5 {[%clk 0:00:12]}  Rg1+ {[%clk 0:00:02]} 57. Kh2 {[%clk 0:00:12]}  Rg4 {[%clk 0:00:02]} 58. Kh3 {[%clk 0:00:12]}  Rg1 {[%clk 0:00:02]} 59. Rc8 {[%clk 0:00:12]}  Kh7 {[%clk 0:00:02]} 60. Re8 {[%clk 0:00:12]}  Rg4 {[%clk 0:00:01]} 61. Re7 {[%clk 0:00:11]}  Kg8 {[%clk 0:00:01]} 62. Re8+ {[%clk 0:00:11]}  Kf7 {[%clk 0:00:01]} 63. Rh8 {[%clk 0:00:11]} 1-0

[Event "January 9 Early 2024"]
[Site "https://www.chess.com"]
[Date "2024.01.11"]
[Round "10"]
[White "Kislinsky, Alexey"]
[Black "Reprintsev, Alexander"]
[Result "1/2-1/2"]
[Board "188"]
[TimeControl "180+1"]
[WhiteFideId "14108801"]
[BlackFideId "14100541"]
[WhiteElo "2710"]
[BlackElo "2455"]
[WhiteTeam "CZE"]
[BlackTeam "UKR"]
[WhiteClock "0:00:15"]
[BlackClock "0:00:03"]

1. c4 {[%clk 0:02:59]}  e5 {[%clk 0:02:59]} 2. g3 {[%clk 0:02:57]}  c6 {[%clk 0:02:54]} 3. Bg2 {[%clk 0:02:56]}  d5 {[%clk 0:02:52]} 4. cxd5 {[%clk 0:02:56]}  cxd5 {[%clk 0:02:52]} 5. d4 {[%clk 0:02:56]}  e4 {[%clk 0:02:49]} 6. Nc3 {[%clk 0:02:56]}  Nc6 {[%clk 0:02:45]} 7. Nh3 {[%clk 0:02:56]}  h6 {[%clk 0:02:21]} 8. O-O {[%clk 0:02:49]}  Nf6 {[%clk 0:02:20]} 9. Nf4 {[%clk 0:02:48]}  Be7 {[%clk 0:02:14]} 10. e3 {[%clk 0:02:42]}  O-O {[%clk 0:02:13]} 11. f3 {[%clk 0:02:38]}  exf3 {[%clk 0:02:06]} 12. Bxf3 {[%clk 0:02:39]}  Be6 {[%clk 0:02:06]} 13. Nxe6 {[%clk 0:02:35]}  fxe6 {[%clk 0:02:05]} 14. Bd2 {[%clk 0:02:34]}  a6 {[%clk 0:01:55]} 15. Rc1 {[%clk 0:02:32]}  Rc8 {[%clk 0:01:53]} 16. Na4 {[%clk 0:02:27]}  b5 {[%clk 0:01:33]} 17. Nc5 {[%clk 0:02:23]}  Bxc5 {[%clk 0:01:33]} 18. Rxc5 {[%clk 0:02:24]}  Nd7 {[%clk 0:01:33]} 19. Rc1 {[%clk 0:02:23]}  Qb6 {[%clk 0:01:18]} 20. Bg4 {[%clk 0:02:11]}  Rce8 {[%clk 0:01:15]} 21. Rxf8+ {[%clk 0:02:08]}  Nxf8 {[%clk 0:01:15]} 22. Qf3 {[%clk 0:02:00]}  Qb7 {[%clk 0:01:03]} 23. Bh5 {[%clk 0:01:59]}  Rc8 {[%clk 0:00:55]} 24. Rf1 {[%clk 0:01:57]}  Qe7 {[%clk 0:00:50]} 25. a3 {[%clk 0:01:44]}  g6 {[%clk 0:00:48]} 26. Bg4 {[%clk 0:01:44]}  h5 {[%clk 0:00:48]} 27. Bh3 {[%clk 0:01:44]}  Kg7 {[%clk 0:00:48]} 28. Bc3 {[%clk 0:01:44]}  Nd7 {[%clk 0:00:46]} 29. e4 {[%clk 0:01:43]}  Rf8 {[%clk 0:00:45]} 30. Qe2 {[%clk 0:01:42]}  Rxf1+ {[%clk 0:00:45]} 31. Bxf1 {[%clk 0:01:43]}  Qf6 {[%clk 0:00:37]} 32. Bg2 {[%clk 0:01:37]}  Nxd4 {[%clk 0:00:35]} 33. Qe3 {[%clk 0:01:37]}  e5 {[%clk 0:00:33]} 34. exd5 {[%clk 0:01:38]}  Nc5 {[%clk 0:00:26]} 35. Qf2 {[%clk 0:01:29]}  Qxf2+ {[%clk 0:00:20]} 36. Kxf2 {[%clk 0:01:29]}  Kf6 {[%clk 0:00:21]} 37. Ke3 {[%clk 0:01:28]}  Nf5+ {[%clk 0:00:19]} 38. Kd2 {[%clk 0:01:25]}  Nd4 {[%clk 0:00:17]} 39. b4 {[%clk 0:01:16]}  Ncb3+ {[%clk 0:00:13]} 40. Kd3 {[%clk 0:01:16]}  Ke7 {[%clk 0:00:13]} 41. Be4 {[%clk 0:01:15]}  g5 {[%clk 0:00:13]} 42. Bg6 {[%clk 0:01:14]}  h4 {[%clk 0:00:13]} 43. gxh4 {[%clk 0:01:15]}  gxh4 {[%clk 0:00:13]} 44. Be1 {[%clk 0:01:13]}  Nf3 {[%clk 0:00:12]} 45. Bf2 {[%clk 0:01:11]}  Nxh2 {[%clk 0:00:11]} 46. Bxh4+ {[%clk 0:01:10]}  Kd6 {[%clk 0:00:12]} 47. Be4 {[%clk 0:01:11]}  Ng4 {[%clk 0:00:11]} 48. Bf3 {[%clk 0:00:58]}  Nh6 {[%clk 0:00:08]} 49. Bg5 {[%clk 0:00:54]}  Nf5 {[%clk 0:00:06]} 50. Ke4 {[%clk 0:00:42]}  Nbd4 {[%clk 0:00:05]} 51. Bg2 {[%clk 0:00:24]}  Ng3+ {[%clk 0:00:05]} 52. Kd3 {[%clk 0:00:22]}  Ngf5 {[%clk 0:00:05]} 53. Ke4 {[%clk 0:00:19]}  Ng3+ {[%clk 0:00:04]} 54. Ke3 {[%clk 0:00:16]}  Ngf5+ {[%clk 0:00:05]} 55. Kd3 {[%clk 0:00:16]}  Ne7 {[%clk 0:00:04]} 56. Bh6 {[%clk 0:00:13]}  Nxd5 {[%clk 0:00:04]} 57. Bf8+ {[%clk 0:00:13]}  Ke6 {[%clk 0:00:02]} 58. Bh3+ {[%clk 0:00:12]}  Kf7 {[%clk 0:00:02]} 59. Bc5 {[%clk 0:00:13]}  Nf4+ {[%clk 0:00:02]} 60. Ke4 {[%clk 0:00:13]}  Nxh3 {[%clk 0:00:03]} 61. Bxd4 {[%clk 0:00:12]}  exd4 {[%clk 0:00:03]} 62. Kxd4 {[%clk 0:00:13]}  Ke6 {[%clk 0:00:03]} 63. Kc5 {[%clk 0:00:13]}  Nf4 {[%clk 0:00:02]} 64. Kb6 {[%clk 0:00:14]}  Kd5 {[%clk 0:00:03]} 65. Kxa6 {[%clk 0:00:13]}  Kc4 {[%clk 0:00:03]} 66. Ka5 {[%clk 0:00:14]}  Nd3 {[%clk 0:00:01]} 67. a4 {[%clk 0:00:14]}  Nxb4 {[%clk 0:00:02]} 68. axb5 {[%clk 0:00:15]}  Nd5 {[%clk 0:00:03]} 69. b6 {[%clk 0:00:15]}  Nxb6 {[%clk 0:00:03]} 1/2-1/2